fUSD/lending_fUSD_20260601
["ID","MTS","AMOUNT","RATE_DAILY","PERIOD"]
[423609164,1780259448000,-468.20471276,0.00031151,2]
[423609168,1780259448000,-160.0,0.000312,7]
[423609163,1780259448000,-775.93639075,0.00031151,2]
[423609167,1780259448000,-509.60016754,0.00031192,2]
[423609169,1780259448000,-160.0,0.000312,7]
[423609173,1780259448000,-202.51134261,0.00031235,2]
[423609172,1780259448000,-509.60016754,0.00031214,2]
[423609174,1780259448000,-165.70510902,0.00031235,2]
[423609175,1780259448000,-212.80508935,0.00031235,2]
[423609171,1780259448000,-317.82,0.000312,7]
[423609115,1780259448000,-321.409638,0.00031135,2]
[423609153,1780259448000,-633.48185708,0.00031151,2]
[423609158,1780259448000,-541.17498978,0.00031151,2]
[423609161,1780259448000,-595.42523694,0.00031151,2]
[423609148,1780259448000,-665.3029258,0.00031142,2]
[423609131,1780259448000,-1040.61176409,0.00031142,2]
[423609157,1780259448000,-505.54127023,0.00031151,2]
[423609129,1780259448000,-561.30735455,0.00031142,2]
[423609130,1780259448000,-574.60601472,0.00031142,2]
[423609120,1780259448000,-888.54873643,0.00031138,2]
[423609127,1780259448000,-534.16016612,0.00031142,2]
[423609122,1780259448000,-645.42266843,0.00031138,2]
[423609124,1780259448000,-922.1510041,0.00031142,2]
[423609125,1780259448000,-623.12448824,0.00031142,2]
[423609126,1780259448000,-552.22082348,0.00031142,2]
[423609128,1780259448000,-643.62911756,0.00031142,2]
[423609132,1780259448000,-1124.3581388,0.00031142,2]
[423609133,1780259448000,-608.58344925,0.00031142,2]
[423609123,1780259448000,-591.83498061,0.00031138,2]
[423609140,1780259448000,-714.35682105,0.00031142,2]
[423609137,1780259448000,-613.64747604,0.00031142,2]
[423609138,1780259448000,-589.96508097,0.00031142,2]
[423609136,1780259448000,-557.79234905,0.00031142,2]
[423609135,1780259448000,-588.04700654,0.00031142,2]
[423609139,1780259448000,-522.68579823,0.00031142,2]
[423609145,1780259448000,-647.61488805,0.00031142,2]
[423609143,1780259448000,-667.53925695,0.00031142,2]
[423609144,1780259448000,-748.39402324,0.00031142,2]
[423609142,1780259448000,-627.37401257,0.00031142,2]
[423609134,1780259448000,-1080.4917983,0.00031142,2]
[423609141,1780259448000,-615.22500699,0.00031142,2]
[423609146,1780259448000,-527.85971693,0.00031142,2]
[423609214,1780259449000,-487.8378687,0.00031235,2]
[423609211,1780259449000,-150.18483003,0.00031235,2]
[423609220,1780259449000,-594.25714983,0.00031235,2]
[423609217,1780259449000,-587.79305241,0.00031235,2]
[423609219,1780259449000,-441.00387709,0.00031235,2]
[423609212,1780259449000,-326.20632669,0.00031235,2]
[423609210,1780259449000,-155.84289064,0.00031235,2]
[423609213,1780259449000,-597.32328217,0.00031235,2]
[423609209,1780259449000,-349.08950313,0.00031235,2]
[423609221,1780259449000,-590.58049934,0.00031235,2]
[423609216,1780259449000,-333.91838698,0.00031235,2]
[423609215,1780259449000,-455.25686989,0.00031235,2]
[423609218,1780259449000,-590.10161953,0.00031235,2]
[423609230,1780259449000,-309.13290211,0.00031235,2]
[423609224,1780259449000,-300.13285425,0.00031235,2]
[423609234,1780259449000,-560.49712527,0.00031235,2]
[423609223,1780259449000,-310.58641667,0.00031235,2]
[423609227,1780259449000,-456.39027243,0.00031235,2]
[423609232,1780259449000,-482.64228996,0.00031235,2]
[423609226,1780259449000,-530.18364758,0.00031235,2]
[423609233,1780259449000,-590.52794988,0.00031235,2]
[423609228,1780259449000,-666.38831559,0.00031235,2]
[423609225,1780259449000,-590.10373488,0.00031235,2]
[423609229,1780259449000,-593.71616971,0.00031235,2]
[423609231,1780259449000,-268.15849662,0.00031235,2]
[423609236,1780259449000,-151.0,0.00031235,2]
[423609208,1780259449000,-159.8992,0.00031235,2]
[423609222,1780259449000,-415.10115798,0.00031235,2]
[423609205,1780259449000,-346.61684002,0.00031235,2]
[423609177,1780259449000,-474.93144817,0.00031235,2]
[423609206,1780259449000,-447.56868336,0.00031235,2]
[423609178,1780259449000,-167.95156274,0.00031235,2]
[423609176,1780259449000,-411.57344024,0.00031235,2]
[423609179,1780259449000,-222.40384719,0.00031235,2]
[423609183,1780259449000,-165.5789139,0.00031235,2]
[423609181,1780259449000,-157.75957663,0.00031235,2]
[423609180,1780259449000,-443.80508083,0.00031235,2]
[423609182,1780259449000,-170.17613914,0.00031235,2]
[423609185,1780259449000,-168.29590529,0.00031235,2]
[423609195,1780259449000,-431.75728483,0.00031235,2]
[423609184,1780259449000,-178.15740495,0.00031235,2]
[423609188,1780259449000,-419.76847233,0.00031235,2]
[423609193,1780259449000,-170.8250504,0.00031235,2]
[423609194,1780259449000,-315.42133647,0.00031235,2]
[423609201,1780259449000,-329.82409151,0.00031235,2]
[423609191,1780259449000,-160.52383582,0.00031235,2]
[423609186,1780259449000,-168.82067048,0.00031235,2]
[423609189,1780259449000,-164.4424265,0.00031235,2]
[423609190,1780259449000,-168.87080563,0.00031235,2]
[423609192,1780259449000,-161.56256408,0.00031235,2]
[423609196,1780259449000,-167.53519908,0.00031235,2]
[423609198,1780259449000,-164.99594136,0.00031235,2]
[423609199,1780259449000,-217.5978607,0.00031235,2]
[423609200,1780259449000,-214.12801187,0.00031235,2]
[423609203,1780259449000,-395.41479438,0.00031235,2]
[423609204,1780259449000,-446.36574819,0.00031235,2]
[423609197,1780259449000,-168.89801685,0.00031235,2]
[423609207,1780259449000,-594.71090719,0.00031235,2]
[423609202,1780259449000,-384.56370732,0.00031235,2]
[423609187,1780259449000,-379.11152279,0.00031235,2]
[423609237,1780259449000,-151.0,0.00031235,2]
[423609246,1780259449000,-340.5,0.000313,7]
[423609238,1780259449000,-151.0,0.00031235,7]
[423609270,1780259449000,-1097.0,0.00031669,30]
[423609273,1780259449000,-158.0,0.00031672,30]
[423609276,1780259449000,-186.0,0.00031672,30]
[423609275,1780259449000,-288.0,0.00031672,30]
[423609278,1780259449000,-156.0,0.00031672,30]
[423609279,1780259449000,-1196.0,0.00031672,30]
[423609274,1780259449000,-779.0,0.00031672,30]
[423609277,1780259449000,-545.0,0.00031672,30]
[423609281,1780259449000,-790.28985092,0.00031728,2]
[423609280,1780259449000,-509.60016754,0.00031706,2]
[423609284,1780259449000,-804.53639695,0.00031733,2]
[423609282,1780259449000,-831.591983,0.00031728,2]
[423609283,1780259449000,-1152.68875512,0.00031733,2]
[423609267,1780259449000,-387.0,0.00031669,30]
[423609286,1780259449000,-1405.4476735,0.00031733,2]
[423609285,1780259449000,-1300.76470511,0.00031733,2]
[423609287,1780259449000,-1350.61474788,0.00031733,2]
[423609288,1780259449000,-892.94602631,0.00031733,2]
[423609290,1780259449000,-784.21751571,0.00031733,2]
[423609293,1780259449000,-809.51861006,0.00031733,2]
[423609292,1780259449000,-935.49252905,0.00031733,2]
[423609289,1780259449000,-769.03125874,0.00031733,2]
[423609295,1780259449000,-955.61893959,0.00031742,2]
[423609294,1780259449000,-791.85232135,0.00031742,2]
[423609291,1780259449000,-834.42407118,0.00031733,2]
[423609298,1780259449000,-820.79360475,0.00031742,2]
[423609297,1780259449000,-770.34240089,0.00031742,2]
[423609235,1780259449000,-472.03184783,0.00031235,2]
[423609296,1780259449000,-927.16605449,0.00031742,2]
[423609263,1780259449000,-1225.157,0.0003166,2]
[423609299,1780259449000,-832.98539449,0.00031827,2]
[423609271,1780259449000,-864.0,0.00031669,30]
[423609269,1780259449000,-265.0,0.00031669,30]
[423609240,1780259449000,-151.0,0.00031235,2]
[423609242,1780259449000,-151.0,0.00031235,2]
[423609241,1780259449000,-151.0,0.00031235,2]
[423609245,1780259449000,-509.60016754,0.00031261,2]
[423609243,1780259449000,-177.060749,0.00031235,2]
[423609244,1780259449000,-151.0,0.00031235,7]
[423609247,1780259449000,-200.0,0.00031361,2]
[423609249,1780259449000,-615.0,0.00031409,6]
[423609259,1780259449000,-509.60016754,0.00031614,2]
[423609250,1780259449000,-413.61503396,0.00031461,2]
[423609253,1780259449000,-1676.35,0.00031483,2]
[423609258,1780259449000,-509.60016754,0.00031542,2]
[423609251,1780259449000,-4917.82941975,0.00031461,2]
[423609239,1780259449000,-151.0,0.00031235,2]
[423609252,1780259449000,-10259.85300746,0.00031461,2]
[423609268,1780259449000,-507.0,0.00031669,30]
[423609264,1780259449000,-3639.0,0.0003166,2]
[423609266,1780259449000,-151.0,0.00031667,7]
[423609265,1780259449000,-1356.0,0.0003166,2]
[423609248,1780259449000,-200.0,0.00031361,2]
[423609272,1780259449000,-157.0,0.00031669,30]
[423609262,1780259449000,-1273.0,0.0003166,2]
[423609261,1780259449000,-509.60016754,0.00031658,2]
[423609257,1780259449000,-509.60016754,0.00031517,2]
[423609254,1780259449000,-200.90036177,0.000315,2]
[423609255,1780259449000,-150.0,0.000315,2]
[423609256,1780259449000,-154.3,0.00031507,30]
[423609260,1780259449000,-151.0,0.00031634,4]
[423609337,1780259450000,-311.217823,0.00032,7]
[423609338,1780259450000,-311.217823,0.00032,7]
[423609334,1780259450000,-311.217823,0.00032,7]
[423609339,1780259450000,-700.0,0.00032,2]
[423609340,1780259450000,-46283.59419265,0.00032048,3]
[423609342,1780259450000,-7244.9602,0.00032137,30]
[423609335,1780259450000,-151.0,0.00032,7]
[423609331,1780259450000,-389.761139,0.00032,7]
[423609333,1780259450000,-311.217823,0.00032,7]
[423609341,1780259450000,-200.0,0.00032055,2]
[423609332,1780259450000,-389.761139,0.00032,7]
[423609336,1780259450000,-151.0,0.00032,7]
[423609345,1780259450000,-910.48535076,0.000323,2]
[423609348,1780259450000,-151.0,0.00032329,7]
[423609355,1780259450000,-151.0,0.00032329,7]
[423609356,1780259450000,-199.566695,0.00032329,7]
[423609346,1780259450000,-151.0,0.00032329,7]
[423609347,1780259450000,-151.0,0.00032329,7]
[423609349,1780259450000,-151.0,0.00032329,7]
[423609350,1780259450000,-151.0,0.00032329,7]
[423609351,1780259450000,-151.0,0.00032329,7]
[423609352,1780259450000,-151.0,0.00032329,7]
[423609353,1780259450000,-151.0,0.00032329,7]
[423609354,1780259450000,-151.0,0.00032329,7]
[423609357,1780259450000,-3906.77,0.00032352,14]
[423609343,1780259450000,-208.63,0.000322,12]
[423609344,1780259450000,-512.3,0.0003221,5]
[423609324,1780259450000,-1106.55898899,0.00032,120]
[423609316,1780259450000,-203.01632964,0.00032,120]
[423609330,1780259450000,-389.761139,0.00032,7]
[423609300,1780259450000,-509.60016754,0.00031904,2]
[423609302,1780259450000,-615.0,0.00031943,7]
[423609301,1780259450000,-509.60016754,0.00031916,2]
[423609303,1780259450000,-509.60016754,0.00031996,2]
[423609306,1780259450000,-502.62444396,0.00032,120]
[423609305,1780259450000,-163.46624608,0.00032,120]
[423609304,1780259450000,-190.60357362,0.00032,120]
[423609307,1780259450000,-343.80148986,0.00032,120]
[423609309,1780259450000,-166.32529734,0.00032,120]
[423609308,1780259450000,-227.86978202,0.00032,120]
[423609310,1780259450000,-198.77394416,0.00032,120]
[423609311,1780259450000,-1133.4284204,0.00032,120]
[423609314,1780259450000,-180.57761234,0.00032,120]
[423609312,1780259450000,-273.16186607,0.00032,120]
[423609313,1780259450000,-179.91822741,0.00032,120]
[423609318,1780259450000,-1550.44220446,0.00032,120]
[423609317,1780259450000,-229.93304734,0.00032,120]
[423609315,1780259450000,-973.5023997,0.00032,120]
[423609319,1780259450000,-1350.21797627,0.00032,120]
[423609328,1780259450000,-3347.22,0.00032,14]
[423609321,1780259450000,-703.41061854,0.00032,120]
[423609327,1780259450000,-1763.2305975,0.00032,2]
[423609329,1780259450000,-389.761139,0.00032,7]
[423609320,1780259450000,-1127.71266082,0.00032,120]
[423609322,1780259450000,-2474.04258438,0.00032,120]
[423609326,1780259450000,-1298.59053919,0.00032,120]
[423609323,1780259450000,-1071.12217871,0.00032,120]
[423609325,1780259450000,-1354.48788215,0.00032,120]
[423609368,1780259450000,-509.60016754,0.00032551,2]
[423609380,1780259450000,-941.06101885,0.00032619,2]
[423609360,1780259450000,-509.60016754,0.00032414,2]
[423609394,1780259450000,-800.0,0.00032658,12]
[423609397,1780259450000,-507.0,0.00032669,30]
[423609396,1780259450000,-387.0,0.00032669,30]
[423609395,1780259450000,-800.0,0.00032658,12]
[423609393,1780259450000,-800.0,0.00032658,12]
[423609400,1780259450000,-864.0,0.00032669,30]
[423609399,1780259450000,-1097.0,0.00032669,30]
[423609401,1780259450000,-157.0,0.00032669,30]
[423609402,1780259450000,-158.0,0.00032672,30]
[423609398,1780259450000,-265.0,0.00032669,30]
[423609403,1780259450000,-779.0,0.00032672,30]
[423609415,1780259450000,-520.50642507,0.00032877,2]
[423609392,1780259450000,-800.0,0.00032658,12]
[423609405,1780259450000,-186.0,0.00032672,30]
[423609404,1780259450000,-288.0,0.00032672,30]
[423609406,1780259450000,-545.0,0.00032672,30]
[423609412,1780259450000,-509.60016754,0.00032869,2]
[423609409,1780259450000,-4920.76035741,0.000328,2]
[423609407,1780259450000,-156.0,0.00032672,30]
[423609411,1780259450000,-151.0,0.00032836,2]
[423609410,1780259450000,-151.0,0.00032808,2]
[423609413,1780259450000,-350.8,0.00032877,2]
[423609414,1780259450000,-231.54,0.00032877,2]
[423609417,1780259450000,-500.0,0.00032877,2]
[423609418,1780259450000,-500.0,0.00032877,2]
[423609367,1780259450000,-638.53,0.00032534,30]
[423609416,1780259450000,-500.0,0.00032877,2]
[423609391,1780259450000,-800.0,0.00032658,12]
[423609408,1780259450000,-1196.0,0.00032672,30]
[423609389,1780259450000,-800.0,0.00032658,12]
[423609390,1780259450000,-800.0,0.00032658,12]
[423609358,1780259450000,-26897.0,0.00032366,2]
[423609359,1780259450000,-340.5,0.000324,7]
[423609365,1780259450000,-1000.65067019,0.000325,14]
[423609361,1780259450000,-615.0,0.00032477,7]
[423609363,1780259450000,-1000.0,0.000325,2]
[423609364,1780259450000,-1000.0,0.000325,7]
[423609366,1780259450000,-509.60016754,0.00032532,2]
[423609370,1780259450000,-509.60016754,0.00032605,2]
[423609369,1780259450000,-150.0,0.00032562,2]
[423609374,1780259450000,-965.44367634,0.00032619,2]
[423609371,1780259450000,-948.3478211,0.00032614,2]
[423609373,1780259450000,-1383.22650615,0.00032619,2]
[423609362,1780259450000,-163.0,0.00032488,11]
[423609376,1780259450000,-1686.5372082,0.00032619,2]
[423609372,1780259450000,-997.91037959,0.00032614,2]
[423609385,1780259450000,-1146.7427275,0.00032627,2]
[423609386,1780259450000,-1112.59926538,0.00032627,2]
[423609384,1780259450000,-950.22278562,0.00032627,2]
[423609381,1780259450000,-1001.30888542,0.00032619,2]
[423609387,1780259450000,-151.62958337,0.00032634,4]
[423609382,1780259450000,-1122.59103486,0.00032619,2]
[423609378,1780259450000,-1071.53523157,0.00032619,2]
[423609383,1780259450000,-971.42233207,0.00032619,2]
[423609375,1780259450000,-1560.91764613,0.00032619,2]
[423609377,1780259450000,-1620.73769745,0.00032619,2]
[423609388,1780259450000,-800.0,0.00032658,12]
[423609379,1780259450000,-922.83751048,0.00032619,2]
[423609443,1780259451000,-534.83917216,0.00032999,2]
[423609454,1780259451000,-180.57761234,0.00033,120]
[423609445,1780259451000,-163.46624608,0.00033,120]
[423609451,1780259451000,-1133.4284204,0.00033,120]
[423609453,1780259451000,-179.91822741,0.00033,120]
[423609449,1780259451000,-166.32529734,0.00033,120]
[423609448,1780259451000,-227.86978202,0.00033,120]
[423609452,1780259451000,-273.16186607,0.00033,120]
[423609450,1780259451000,-198.77394416,0.00033,120]
[423609447,1780259451000,-343.80148986,0.00033,120]
[423609460,1780259451000,-1127.71266082,0.00033,120]
[423609455,1780259451000,-973.5023997,0.00033,120]
[423609466,1780259451000,-1298.59053919,0.00033,120]
[423609457,1780259451000,-229.93304734,0.00033,120]
[423609459,1780259451000,-1350.21797627,0.00033,120]
[423609461,1780259451000,-703.41061854,0.00033,120]
[423609464,1780259451000,-1106.55898899,0.00033,120]
[423609458,1780259451000,-1550.44220446,0.00033,120]
[423609462,1780259451000,-2474.04258438,0.00033,120]
[423609446,1780259451000,-502.62444396,0.00033,120]
[423609463,1780259451000,-1071.12217871,0.00033,120]
[423609456,1780259451000,-203.01632964,0.00033,120]
[423609444,1780259451000,-190.60357362,0.00033,120]
[423609427,1780259451000,-335.93,0.000329,120]
[423609439,1780259451000,-534.65,0.00032999,2]
[423609465,1780259451000,-1354.48788215,0.00033,120]
[423609419,1780259451000,-500.0,0.00032877,2]
[423609420,1780259451000,-500.0,0.00032877,2]
[423609428,1780259451000,-1200.0,0.000329,12]
[423609421,1780259451000,-500.0,0.00032877,2]
[423609422,1780259451000,-423.13003328,0.00032877,2]
[423609425,1780259451000,-293.80344897,0.00032877,10]
[423609426,1780259451000,-267.8,0.000329,120]
[423609424,1780259451000,-500.0,0.00032877,10]
[423609423,1780259451000,-500.0,0.00032877,10]
[423609442,1780259451000,-534.65,0.00032999,2]
[423609430,1780259451000,-509.60016754,0.00032904,2]
[423609429,1780259451000,-247.86,0.000329,120]
[423609441,1780259451000,-534.65,0.00032999,2]
[423609434,1780259451000,-403.93373113,0.00032955,2]
[423609437,1780259451000,-419.05891266,0.00032955,2]
[423609431,1780259451000,-400.0,0.00032955,2]
[423609432,1780259451000,-400.0,0.00032955,2]
[423609435,1780259451000,-407.0,0.00032955,2]
[423609433,1780259451000,-400.0,0.00032955,2]
[423609436,1780259451000,-407.0,0.00032955,2]
[423609438,1780259451000,-246.09559064,0.00032955,2]
[423609440,1780259451000,-534.65,0.00032999,2]
[423609468,1780259451000,-362.06902251,0.00033,2]
[423609470,1780259451000,-1771.99849852,0.00033,3]
[423609471,1780259451000,-1047.58031507,0.00033,30]
[423609497,1780259451000,-200.0,0.00033269,2]
[423609503,1780259451000,-200.0,0.00033269,2]
[423609505,1780259451000,-200.0,0.00033269,2]
[423609496,1780259451000,-200.0,0.00033269,2]
[423609504,1780259451000,-200.0,0.00033269,2]
[423609499,1780259451000,-200.0,0.00033269,2]
[423609506,1780259451000,-200.0,0.00033269,2]
[423609498,1780259451000,-200.0,0.00033269,2]
[423609502,1780259451000,-200.0,0.00033269,2]
[423609500,1780259451000,-200.0,0.00033269,2]
[423609495,1780259451000,-200.0,0.00033269,2]
[423609501,1780259451000,-166.0,0.00033269,2]
[423609508,1780259451000,-200.0,0.00033269,2]
[423609511,1780259451000,-200.0,0.00033269,2]
[423609510,1780259451000,-200.0,0.00033269,2]
[423609512,1780259451000,-200.0,0.00033269,2]
[423609517,1780259451000,-200.0,0.00033269,2]
[423609514,1780259451000,-200.0,0.00033269,2]
[423609515,1780259451000,-200.0,0.00033269,2]
[423609516,1780259451000,-200.0,0.00033269,2]
[423609513,1780259451000,-200.0,0.00033269,2]
[423609518,1780259451000,-200.0,0.00033269,2]
[423609509,1780259451000,-200.0,0.00033269,2]
[423609494,1780259451000,-200.0,0.00033269,2]
[423609507,1780259451000,-200.0,0.00033269,2]
[423609488,1780259451000,-200.0,0.00033269,2]
[423609490,1780259451000,-200.0,0.00033269,2]
[423609467,1780259451000,-220.14,0.00033,14]
[423609469,1780259451000,-954.64881168,0.00033,7]
[423609472,1780259451000,-573.391385,0.00033,14]
[423609476,1780259451000,-173.185971,0.000332,16]
[423609474,1780259451000,-350.0,0.00033014,5]
[423609479,1780259451000,-500.0,0.00033269,2]
[423609473,1780259451000,-615.0,0.00033011,8]
[423609477,1780259451000,-500.0,0.00033269,2]
[423609475,1780259451000,-636.09,0.000332,30]
[423609481,1780259451000,-500.0,0.00033269,2]
[423609478,1780259451000,-500.0,0.00033269,2]
[423609493,1780259451000,-200.0,0.00033269,2]
[423609492,1780259451000,-200.0,0.00033269,2]
[423609491,1780259451000,-200.0,0.00033269,2]
[423609482,1780259451000,-500.0,0.00033269,2]
[423609480,1780259451000,-500.0,0.00033269,2]
[423609483,1780259451000,-530.0,0.00033269,2]
[423609484,1780259451000,-200.0,0.00033269,2]
[423609486,1780259451000,-200.0,0.00033269,2]
[423609485,1780259451000,-200.0,0.00033269,2]
[423609489,1780259451000,-200.0,0.00033269,2]
[423609487,1780259451000,-200.0,0.00033269,2]
[423609556,1780259452000,-575.1,0.00033658,2]
[423609564,1780259452000,-779.0,0.00033672,30]
[423609557,1780259452000,-387.0,0.00033669,30]
[423609559,1780259452000,-265.0,0.00033669,30]
[423609554,1780259452000,-572.81,0.00033634,2]
[423609546,1780259452000,-1000.92020843,0.00033536,2]
[423609553,1780259452000,-475.16,0.00033634,2]
[423609548,1780259452000,-759.58999999,0.00033562,30]
[423609547,1780259452000,-615.0,0.00033545,9]
[423609544,1780259452000,-319.94370205,0.00033461,2]
[423609563,1780259452000,-158.0,0.00033672,30]
[423609555,1780259452000,-542.04,0.00033658,2]
[423609561,1780259452000,-864.0,0.00033669,30]
[423609570,1780259452000,-252.79,0.00033777,7]
[423609560,1780259452000,-1097.0,0.00033669,30]
[423609558,1780259452000,-507.0,0.00033669,30]
[423609568,1780259452000,-156.0,0.00033672,30]
[423609569,1780259452000,-1196.0,0.00033672,30]
[423609566,1780259452000,-186.0,0.00033672,30]
[423609572,1780259452000,-190.60357362,0.000339,120]
[423609567,1780259452000,-545.0,0.00033672,30]
[423609573,1780259452000,-163.46624608,0.000339,120]
[423609576,1780259452000,-166.32529734,0.000339,120]
[423609571,1780259452000,-151.0,0.0003388,7]
[423609574,1780259452000,-502.62444396,0.000339,120]
[423609543,1780259452000,-249.2,0.00033442,7]
[423609565,1780259452000,-288.0,0.00033672,30]
[423609545,1780259452000,-1234.37497225,0.000335,2]
[423609523,1780259452000,-200.0,0.00033269,2]
[423609552,1780259452000,-184.97,0.0003363,2]
[423609519,1780259452000,-200.0,0.00033269,2]
[423609520,1780259452000,-200.0,0.00033269,2]
[423609521,1780259452000,-200.0,0.00033269,2]
[423609575,1780259452000,-343.80148986,0.000339,120]
[423609527,1780259452000,-200.0,0.00033269,2]
[423609525,1780259452000,-200.0,0.00033269,2]
[423609526,1780259452000,-200.0,0.00033269,2]
[423609522,1780259452000,-200.0,0.00033269,2]
[423609524,1780259452000,-200.0,0.00033269,2]
[423609528,1780259452000,-200.0,0.00033269,2]
[423609529,1780259452000,-200.0,0.00033269,2]
[423609540,1780259452000,-340.5,0.000333,30]
[423609549,1780259452000,-763.1,0.00033607,14]
[423609533,1780259452000,-200.0,0.00033269,2]
[423609530,1780259452000,-200.0,0.00033269,2]
[423609532,1780259452000,-200.0,0.00033269,2]
[423609535,1780259452000,-200.0,0.00033269,2]
[423609539,1780259452000,-154.0,0.00033269,2]
[423609537,1780259452000,-200.0,0.00033269,2]
[423609538,1780259452000,-200.0,0.00033269,2]
[423609536,1780259452000,-200.0,0.00033269,2]
[423609534,1780259452000,-200.0,0.00033269,2]
[423609542,1780259452000,-1520.24509226,0.00033425,7]
[423609550,1780259452000,-239.15,0.0003361,7]
[423609541,1780259452000,-1500.0,0.000334,7]
[423609551,1780259452000,-306.06504259,0.00033618,2]
[423609531,1780259452000,-200.0,0.00033269,2]
[423609588,1780259452000,-703.41061854,0.000339,120]
[423609562,1780259452000,-157.0,0.00033669,30]
[423609579,1780259452000,-273.16186607,0.000339,120]
[423609610,1780259452000,-636.09,0.00034,30]
[423609607,1780259452000,-1108.59324989,0.00033956,2]
[423609608,1780259452000,-1298.03247628,0.00033956,2]
[423609613,1780259452000,-615.0,0.00034079,9]
[423609615,1780259452000,-251.21,0.00034111,7]
[423609617,1780259452000,-7244.9602,0.00034137,40]
[423609616,1780259452000,-3906.77,0.00034117,30]
[423609618,1780259452000,-512.3,0.00034182,7]
[423609619,1780259452000,-150.0,0.0003419,2]
[423609620,1780259452000,-340.5,0.000342,30]
[423609622,1780259452000,-248.05,0.00034279,7]
[423609624,1780259452000,-400.0,0.00034453,2]
[423609609,1780259452000,-350.0,0.00033973,5]
[423609621,1780259452000,-2000.0,0.00034247,30]
[423609623,1780259452000,-400.0,0.00034453,2]
[423609627,1780259452000,-407.0,0.00034453,2]
[423609626,1780259452000,-407.0,0.00034453,2]
[423609628,1780259452000,-407.0,0.00034453,2]
[423609629,1780259452000,-150.0,0.00034453,2]
[423609630,1780259452000,-150.0,0.00034453,2]
[423609631,1780259452000,-150.0,0.00034453,2]
[423609633,1780259452000,-575.08,0.00034456,2]
[423609636,1780259452000,-180.87,0.00034521,120]
[423609635,1780259452000,-5000.0,0.000345,14]
[423609634,1780259452000,-645.98,0.00034456,2]
[423609578,1780259452000,-1133.4284204,0.000339,120]
[423609625,1780259452000,-400.0,0.00034453,2]
[423609606,1780259452000,-1133.32605408,0.00033947,2]
[423609614,1780259452000,-636.09,0.000341,30]
[423609604,1780259452000,-1097.904522,0.00033947,2]
[423609580,1780259452000,-179.91822741,0.000339,120]
[423609605,1780259452000,-1168.19369965,0.00033947,2]
[423609577,1780259452000,-198.77394416,0.000339,120]
[423609582,1780259452000,-973.5023997,0.000339,120]
[423609586,1780259452000,-1350.21797627,0.000339,120]
[423609583,1780259452000,-203.01632964,0.000339,120]
[423609585,1780259452000,-1550.44220446,0.000339,120]
[423609581,1780259452000,-180.57761234,0.000339,120]
[423609587,1780259452000,-1127.71266082,0.000339,120]
[423609589,1780259452000,-2474.04258438,0.000339,120]
[423609632,1780259452000,-575.08,0.00034456,2]
[423609598,1780259452000,-1126.35095573,0.00033947,2]
[423609591,1780259452000,-1106.55898899,0.000339,120]
[423609590,1780259452000,-1071.12217871,0.000339,120]
[423609584,1780259452000,-229.93304734,0.000339,120]
[423609611,1780259452000,-869.7,0.00034,7]
[423609603,1780259452000,-1076.64376223,0.00033947,2]
[423609592,1780259452000,-1354.48788215,0.000339,120]
[423609601,1780259452000,-1890.86064703,0.00033947,2]
[423609612,1780259452000,-750.0,0.00034,2]
[423609602,1780259452000,-1250.12443683,0.00033947,2]
[423609593,1780259452000,-1298.59053919,0.000339,120]
[423609596,1780259452000,-241.27,0.00033944,7]
[423609597,1780259452000,-1613.76425717,0.00033947,2]
[423609600,1780259452000,-1967.6267429,0.00033947,2]